lending/lending_fUSD_20250131
["ID","MTS","AMOUNT","RATE_DAILY","PERIOD"]
[351077402,1738326640353,-1045.53,0.00016438,2]
[351077404,1738326640366,-500.0,0.00016438,2]
[351077406,1738326640376,-500.0,0.00016438,2]
[351077408,1738326640386,-500.0,0.00016438,2]
[351077410,1738326640395,-500.0,0.00016438,2]
[351077412,1738326640406,-500.0,0.00016438,2]
[351077414,1738326640416,-500.0,0.00016438,2]
[351077416,1738326640426,-500.0,0.00016438,2]
[351077418,1738326640435,-500.0,0.00016438,2]
[351077420,1738326640446,-500.0,0.00016438,2]
[351077422,1738326640455,-375.17817605,0.00016438,2]
[351077424,1738326640466,-500.0,0.00016438,2]
[351077426,1738326640476,-570.25,0.00016438,2]
[351077428,1738326640486,-1240.4,0.00016438,2]
[351077431,1738326640495,-812.59,0.00016438,2]
[351077433,1738326640504,-500.0,0.00016438,2]
[351077435,1738326640514,-500.0,0.00016438,2]
[351077437,1738326640523,-500.0,0.00016438,2]
[351077438,1738326640533,-500.0,0.00016438,2]
[351077441,1738326640542,-500.0,0.00016438,2]
[351077442,1738326640553,-500.0,0.00016438,2]
[351077444,1738326640562,-500.0,0.00016438,2]
[351077446,1738326640572,-500.0,0.00016438,2]
[351077449,1738326640581,-500.0,0.00016438,2]
[351077451,1738326640591,-500.0,0.00016438,2]
[351077452,1738326640600,-500.0,0.00016438,2]
[351077454,1738326640610,-689.6,0.00016438,2]
[351077456,1738326640620,-500.0,0.00016438,2]
[351077459,1738326640629,-500.0,0.00016438,2]
[351077461,1738326640638,-500.0,0.00016438,2]
[351077463,1738326640647,-500.0,0.00016438,2]
[351077465,1738326640656,-500.0,0.00016438,2]
[351077467,1738326640666,-500.0,0.00016438,2]
[351077469,1738326640675,-500.0,0.00016438,2]
[351077471,1738326640684,-910.39,0.00016438,2]
[351077473,1738326640693,-500.0,0.00016438,2]
[351077475,1738326640702,-500.0,0.00016438,2]
[351077477,1738326640712,-904.35,0.00016438,2]
[351077479,1738326640725,-689.96,0.00016438,2]
[351077481,1738326640736,-1243.74,0.00016438,2]
[351077484,1738326640749,-500.0,0.00016438,2]
[351077486,1738326640761,-560.96631003,0.00016438,2]
[351077488,1738326640773,-731.84,0.00016438,2]
[351077490,1738326640783,-500.0,0.00016438,2]
[351077492,1738326640793,-500.0,0.00016438,2]
[351077494,1738326640803,-500.0,0.00016438,2]
[351077497,1738326640814,-500.0,0.00016438,2]
[351077499,1738326640825,-500.0,0.00016438,2]
[351077501,1738326640837,-500.0,0.00016438,2]
[351077503,1738326640848,-500.0,0.00016438,2]
[351077505,1738326640859,-1184.32,0.00016438,2]
[351077508,1738326640871,-500.0,0.00016438,2]
[351077510,1738326640883,-521.46,0.00016438,2]
[351077512,1738326640895,-629.74,0.00016438,2]
[351077515,1738326640907,-500.0,0.00016438,2]
[351077517,1738326640917,-500.0,0.00016438,2]
[351077519,1738326640928,-962.35,0.00016438,2]
[351077521,1738326640939,-500.0,0.00016438,2]
[351077523,1738326640950,-500.0,0.00016438,2]
[351077525,1738326640960,-500.0,0.00016438,2]
[351077527,1738326640971,-500.0,0.00016438,2]
[351077530,1738326640982,-152.56369087,0.00016438,2]
[351077532,1738326640994,-500.0,0.00016438,2]
[351077534,1738326641005,-500.0,0.00016438,2]
[351077536,1738326641017,-733.72,0.00016438,2]
[351077539,1738326641028,-500.0,0.00016438,2]
[351077541,1738326641040,-500.0,0.00016438,2]
[351077543,1738326641052,-2308.58,0.00016438,2]
[351077545,1738326641063,-500.0,0.00016438,2]
[351077548,1738326641076,-500.0,0.00016438,2]
[351077550,1738326641088,-639.9,0.00016438,2]
[351077552,1738326641099,-500.0,0.00016438,2]
[351077554,1738326641111,-500.0,0.00016438,2]
[351077557,1738326641122,-1198.14,0.00016438,2]
[351077559,1738326641134,-504.46,0.00016438,2]
[351077561,1738326641147,-500.0,0.00016438,2]
[351077563,1738326641158,-500.0,0.00016438,2]
[351077566,1738326641170,-851.17,0.00016438,2]
[351077568,1738326641182,-500.0,0.00016438,2]
[351077570,1738326641193,-500.0,0.00016438,2]
[351077573,1738326641205,-500.0,0.00016438,2]
[351077575,1738326641216,-500.0,0.00016438,2]
[351077577,1738326641227,-500.0,0.00016438,2]
[351077579,1738326641239,-600.74,0.00016438,2]
[351077581,1738326641250,-289.75406214,0.00016438,2]
[351077584,1738326641262,-733.21,0.00016438,2]
[351077586,1738326641274,-500.0,0.00016438,2]
[351077588,1738326641285,-500.0,0.00016438,2]
[351077590,1738326641296,-502.81089615,0.00016438,2]
[351077592,1738326641307,-500.0,0.00016438,2]
[351077594,1738326641317,-500.0,0.00016438,2]
[351077597,1738326641329,-579.87,0.00016438,2]
[351077599,1738326641339,-522.99822145,0.00016438,2]
[351077601,1738326641349,-500.0,0.00016438,2]
[351077603,1738326641366,-500.0,0.00016438,2]
[351077605,1738326641377,-500.0,0.00016438,2]
[351077607,1738326641388,-1059.07,0.00016438,2]
[351077609,1738326641399,-739.89,0.00016438,2]
[351077612,1738326641413,-500.0,0.00016438,2]
[351077614,1738326641424,-500.0,0.00016438,2]
[351077616,1738326641434,-500.0,0.00016438,2]
[351077618,1738326641445,-500.0,0.00016438,2]
[351077620,1738326641455,-975.26,0.00016438,2]
[351077622,1738326641466,-894.65,0.00016438,2]
[351077624,1738326641476,-623.28,0.00016438,2]
[351077627,1738326641487,-722.08,0.00016438,2]
[351077629,1738326641498,-500.0,0.00016438,2]
[351077631,1738326641509,-500.0,0.00016438,2]
[351077633,1738326641521,-662.55,0.00016438,2]
[351077634,1738326641532,-500.0,0.00016438,2]
[351077635,1738326641543,-500.0,0.00016438,2]
[351077636,1738326641553,-1568.48,0.00016438,2]
[351077637,1738326641563,-500.0,0.00016438,2]
[351077638,1738326641573,-500.0,0.00016438,2]
[351077639,1738326641583,-500.0,0.00016438,2]
[351077640,1738326641593,-500.0,0.00016438,2]
[351077641,1738326641603,-500.0,0.00016438,2]
[351077642,1738326641613,-500.0,0.00016438,2]
[351077644,1738326641623,-581.28,0.00016438,2]
[351077646,1738326641633,-500.0,0.00016438,2]
[351077648,1738326641644,-500.0,0.00016438,2]
[351077651,1738326641654,-943.51,0.00016438,2]
[351077653,1738326641664,-500.0,0.00016438,2]
[351077655,1738326641675,-512.37741203,0.00016438,2]
[351077657,1738326641686,-500.0,0.00016438,2]
[351077659,1738326641696,-528.65,0.00016438,2]
[351077661,1738326641706,-938.62,0.00016438,2]
[351077663,1738326641716,-782.18,0.00016438,2]
[351077665,1738326641727,-264.35749927,0.00016438,2]
[351077668,1738326641738,-632.4,0.00016438,2]
[351077670,1738326641748,-500.0,0.00016438,2]
[351077672,1738326641758,-500.0,0.00016438,2]
[351077674,1738326641769,-500.0,0.00016438,2]
[351077677,1738326641784,-500.0,0.00016438,2]
[351077679,1738326641794,-500.0,0.00016438,2]
[351077681,1738326641805,-500.0,0.00016438,2]
[351077683,1738326641816,-500.0,0.00016438,2]
[351077685,1738326641827,-500.0,0.00016438,2]
[351077687,1738326641837,-637.51,0.00016438,2]
[351077690,1738326641848,-500.0,0.00016438,2]
[351077692,1738326641858,-508.46,0.00016438,2]
[351077694,1738326641869,-500.0,0.00016438,2]
[351077696,1738326641879,-531.47,0.00016438,2]
[351077698,1738326641890,-503.40360493,0.00016438,2]
[351077700,1738326641900,-500.0,0.00016438,2]
[351077702,1738326641910,-500.0,0.00016438,2]
[351077704,1738326641920,-501.20542162,0.00016438,2]
[351077706,1738326641930,-500.0,0.00016438,2]
[351077708,1738326641941,-500.0,0.00016438,2]
[351077711,1738326641951,-1283.01,0.00016438,2]
[351077713,1738326641962,-697.34,0.00016438,2]
[351077715,1738326641972,-500.0,0.00016438,2]
[351077717,1738326641982,-1136.87,0.00016438,2]
[351077719,1738326641993,-500.0,0.00016438,2]
[351077721,1738326642003,-545.29543799,0.00016438,2]
[351077723,1738326642014,-1343.73,0.00016438,2]
[351077725,1738326642025,-753.65,0.00016438,2]
[351077728,1738326642035,-500.0,0.00016438,2]
[351077730,1738326642046,-500.0,0.00016438,2]
[351077732,1738326642056,-500.0,0.00016438,2]
[351077734,1738326642067,-500.0,0.00016438,2]
[351077736,1738326642078,-599.34,0.00016438,2]
[351077738,1738326642090,-500.0,0.00016438,2]
[351077740,1738326642101,-807.7,0.00016438,2]
[351077742,1738326642113,-500.0,0.00016438,2]
[351077745,1738326642123,-500.0,0.00016438,2]
[351077747,1738326642134,-500.0,0.00016438,2]
[351077749,1738326642144,-503.55064278,0.00016438,2]
[351077751,1738326642155,-750.91,0.00016438,2]
[351077753,1738326642165,-500.0,0.00016438,2]
[351077755,1738326642176,-1476.1,0.00016438,2]
[351077757,1738326642186,-500.0,0.00016438,2]
[351077759,1738326642196,-500.0,0.00016438,2]
[351077761,1738326642206,-500.0,0.00016438,2]
[351077764,1738326642217,-797.58,0.00016438,2]
[351077766,1738326642227,-500.0,0.00016438,2]
[351077768,1738326642239,-742.91,0.00016438,2]
[351077770,1738326642250,-1071.73,0.00016438,2]
[351077772,1738326642261,-500.0,0.00016438,2]
[351077774,1738326642271,-503.29058409,0.00016438,2]
[351077777,1738326642282,-531.07,0.00016438,2]
[351077779,1738326642291,-525.8,0.00016438,2]
[351077781,1738326642302,-500.0,0.00016438,2]
[351077783,1738326642312,-500.0,0.00016438,2]
[351077785,1738326642323,-500.0,0.00016438,2]
[351077787,1738326642334,-500.0,0.00016438,2]
[351077789,1738326642344,-500.0,0.00016438,2]
[351077791,1738326642355,-500.0,0.00016438,2]
[351077794,1738326642370,-500.0,0.00016438,2]
[351077796,1738326642380,-500.0,0.00016438,2]
[351077798,1738326642390,-726.21,0.00016438,2]
[351077800,1738326642402,-500.0,0.00016438,2]
[351077802,1738326642413,-500.0,0.00016438,2]
[351077804,1738326642423,-848.51,0.00016438,2]
[351077806,1738326642434,-500.0,0.00016438,2]
[351077808,1738326642451,-500.0,0.00016438,2]
[351077810,1738326642463,-500.0,0.00016438,2]
[351077813,1738326642474,-500.0,0.00016438,2]
[351077815,1738326642485,-500.0,0.00016438,2]
[351077817,1738326642495,-611.63,0.00016438,2]
[351077819,1738326642505,-500.0,0.00016438,2]
[351077821,1738326642515,-500.0,0.00016438,2]
[351077823,1738326642525,-500.0,0.00016438,2]
[351077825,1738326642535,-500.0,0.00016438,2]
[351077828,1738326642546,-500.0,0.00016438,2]
[351077831,1738326642568,-527.41,0.00016438,2]
[351077833,1738326642581,-500.0,0.00016438,2]
[351077835,1738326642593,-500.0,0.00016438,2]
[351077838,1738326642606,-500.0,0.00016438,2]
[351077840,1738326642619,-500.0,0.00016438,2]
[351077842,1738326642631,-773.23,0.00016438,2]
[351077845,1738326642642,-500.0,0.00016438,2]
[351077847,1738326642654,-500.0,0.00016438,2]
[351077849,1738326642666,-500.0,0.00016438,2]
[351077851,1738326642679,-500.0,0.00016438,2]
[351077853,1738326642691,-500.0,0.00016438,2]
[351077856,1738326642702,-370.76779245,0.00016438,2]
[351077858,1738326642714,-534.44,0.00016438,2]
[351077860,1738326642725,-500.0,0.00016438,2]
[351077862,1738326642739,-500.0,0.00016438,2]
[351077865,1738326642751,-616.11,0.00016438,2]
[351077867,1738326642762,-825.72,0.00016438,2]
[351077868,1738326642773,-500.0,0.00016438,2]
[351077870,1738326642784,-500.0,0.00016438,2]
[351077873,1738326642795,-575.49276664,0.00016438,2]
[351077875,1738326642807,-530.86045638,0.00016438,2]
[351077877,1738326642819,-500.0,0.00016438,2]
[351077879,1738326642830,-514.87249543,0.00016438,2]
[351077881,1738326642841,-500.0,0.00016438,2]
[351077884,1738326642852,-500.0,0.00016438,2]
[351077886,1738326642864,-774.25,0.00016438,2]
[351077888,1738326642875,-653.54,0.00016438,2]
[351077890,1738326642886,-992.13,0.00016438,2]
[351077892,1738326642898,-893.92,0.00016438,2]
[351077894,1738326642909,-500.0,0.00016438,2]
[351077896,1738326642919,-500.0,0.00016438,2]
[351077899,1738326642930,-500.0,0.00016438,2]
[351077901,1738326642942,-621.00902689,0.00016438,2]
[351077903,1738326642954,-514.15597698,0.00016438,2]
[351077905,1738326642966,-151.219778,0.00016438,2]
[351077907,1738326642976,-500.0,0.00016438,2]
[351077910,1738326642988,-500.0,0.00016438,2]
[351077912,1738326642999,-500.0,0.00016438,2]
[351077914,1738326643011,-500.0,0.00016438,2]
[351077916,1738326643022,-581.26,0.00016438,2]
[351077918,1738326643032,-500.0,0.00016438,2]
[351077920,1738326643043,-1372.62,0.00016438,2]
[351077922,1738326643054,-563.57,0.00016438,2]
[351077924,1738326643065,-717.67,0.00016438,2]
[351077927,1738326643077,-500.0,0.00016438,2]
[351077929,1738326643089,-778.8,0.00016438,2]
[351077931,1738326643100,-944.3,0.00016438,2]
[351077933,1738326643111,-586.81,0.00016438,2]
[351077935,1738326643122,-687.8,0.00016438,2]
[351077937,1738326643133,-500.0,0.00016438,2]
[351077940,1738326643143,-500.0,0.00016438,2]
[351077943,1738326643154,-2619.13,0.00016438,2]
[351077945,1738326643165,-500.0,0.00016438,2]
[351077947,1738326643176,-500.0,0.00016438,2]
[351077949,1738326643187,-738.82,0.00016438,2]
[351077951,1738326643198,-500.0,0.00016438,2]
[351077953,1738326643208,-153.436238,0.00016438,2]
[351077955,1738326643219,-708.5,0.00016438,2]
[351077960,1738326643230,-854.04,0.00016438,2]
[351077962,1738326643241,-1836.98,0.00016438,2]
[351077964,1738326643252,-500.0,0.00016438,2]
[351077966,1738326643263,-1220.54,0.00016438,2]
[351077968,1738326643273,-500.0,0.00016438,2]
[351077970,1738326643284,-500.0,0.00016438,2]
[351077972,1738326643294,-500.0,0.00016438,2]
[351077974,1738326643305,-843.1,0.00016438,2]
[351077977,1738326643315,-409.23210003,0.00016438,2]
[351077979,1738326643326,-500.0,0.00016438,2]
[351077981,1738326643336,-1314.37,0.00016438,2]
[351077985,1738326643346,-500.0,0.00016438,2]
[351077989,1738326643357,-500.0,0.00016438,2]
[351077993,1738326643371,-908.51,0.00016438,2]
[351077996,1738326643381,-500.0,0.00016438,2]
[351078000,1738326643391,-862.58,0.00016438,2]
[351078003,1738326643403,-1105.52,0.00016438,2]
[351078006,1738326643413,-502.87673331,0.00016438,2]
[351078008,1738326643424,-773.46,0.00016438,2]
[351078010,1738326643435,-693.93,0.00016438,2]
[351078012,1738326643447,-500.0,0.00016438,2]
[351078014,1738326643458,-500.0,0.00016438,2]
[351078016,1738326643469,-500.0,0.00016438,2]
[351078019,1738326643481,-594.11,0.00016438,2]
[351078021,1738326643501,-500.0,0.00016438,2]
[351078023,1738326643512,-4624.11,0.00016438,2]
[351078025,1738326643523,-500.0,0.00016438,2]
[351078027,1738326643534,-1712.74,0.00016438,2]
[351078029,1738326643545,-3138.2,0.00016438,2]
[351078031,1738326643555,-507.76104195,0.00016438,2]
[351078033,1738326643567,-500.0,0.00016438,2]
[351078035,1738326643577,-151.219778,0.00016438,2]
[351078038,1738326643588,-1334.53,0.00016438,2]
[351078040,1738326643598,-1396.15,0.00016438,2]
[351078042,1738326643609,-544.98,0.00016438,2]
[351078044,1738326643620,-500.0,0.00016438,2]
[351078046,1738326643631,-500.0,0.00016438,2]
[351078048,1738326643642,-500.0,0.00016438,2]
[351078050,1738326643653,-1336.46,0.00016438,2]
[351078052,1738326643664,-690.6,0.00016438,2]
[351078055,1738326643674,-6860.94,0.00016438,2]
[351078057,1738326643685,-733.19,0.00016438,2]
[351078059,1738326643696,-500.0,0.00016438,2]
[351078061,1738326643706,-609.97,0.00016438,2]
[351078063,1738326643717,-500.0,0.00016438,2]
[351078065,1738326643728,-500.0,0.00016438,2]
[351078067,1738326643739,-500.0,0.00016438,2]
[351078070,1738326643749,-1196.9,0.00016438,2]
[351078072,1738326643760,-500.0,0.00016438,2]
[351078074,1738326643770,-500.0,0.00016438,2]
[351078076,1738326643782,-849.45,0.00016438,2]
[351078077,1738326643792,-500.0,0.00016438,2]
[351078078,1738326643803,-982.87,0.00016438,2]
[351078079,1738326643818,-500.0,0.00016438,2]
[351078080,1738326643831,-2457.42,0.00016438,2]
[351078081,1738326643841,-500.0,0.00016438,2]
[351078082,1738326643851,-1442.05,0.00016438,2]
[351078083,1738326643862,-1015.62,0.00016438,2]
[351078085,1738326643872,-500.0,0.00016438,2]
[351078088,1738326643882,-2083.65,0.00016438,2]
[351078091,1738326643893,-943.84,0.00016438,2]
[351078093,1738326643903,-500.0,0.00016438,2]
[351078095,1738326643914,-500.0,0.00016438,2]
[351078097,1738326643924,-154.135675,0.00016438,2]
[351078101,1738326643935,-500.0,0.00016438,2]
[351078104,1738326643946,-4027.64,0.00016438,2]
[351078169,1738326644460,-500.0,0.00016438,2]
[351078173,1738326644491,-867.63,0.00016438,2]
[351078176,1738326644510,-500.0,0.00016438,2]
[351078179,1738326644523,-1382.17,0.00016438,2]
[351078181,1738326644532,-500.0,0.00016438,2]
[351078183,1738326644541,-876.78,0.00016438,2]
[351078185,1738326644550,-955.62,0.00016438,2]
[351078187,1738326644560,-943.84,0.00016438,2]
[351078189,1738326644569,-879.0,0.00016438,2]
[351078190,1738326644578,-500.0,0.00016438,2]
[351078193,1738326644587,-1445.88,0.00016438,2]
[351078195,1738326644597,-554.03,0.00016438,2]
[351078197,1738326644606,-500.0,0.00016438,2]
[351078199,1738326644615,-2222.76,0.00016438,2]
[351078201,1738326644625,-500.0,0.00016438,2]
[351078203,1738326644634,-1045.85,0.00016438,2]
[351078204,1738326644643,-5924.82,0.00016438,2]
[351078206,1738326644652,-500.0,0.00016438,2]
[351078209,1738326644662,-1937.38,0.00016438,2]
[351078210,1738326644671,-500.0,0.00016438,2]
[351078213,1738326644680,-1083.4,0.00016438,2]
[351078214,1738326644690,-571.97,0.00016438,2]
[351078217,1738326644700,-595.17,0.00016438,2]
[351078219,1738326644710,-3371.15,0.00016438,2]
[351078221,1738326644720,-500.0,0.00016438,2]
[351078223,1738326644729,-514.26670981,0.00016438,2]
[351078225,1738326644746,-500.0,0.00016438,2]
[351078227,1738326644755,-500.0,0.00016438,2]
[351078229,1738326644764,-500.0,0.00016438,2]
[351078231,1738326644773,-2934.71,0.00016438,2]
[351078233,1738326644783,-500.0,0.00016438,2]
[351078235,1738326644792,-1103.7,0.00016438,2]
[351078237,1738326644802,-446.02238197,0.00016438,2]
[351078239,1738326644812,-500.0,0.00016438,2]
[351078241,1738326644821,-500.0,0.00016438,2]
[351078243,1738326644830,-151.219779,0.00016438,2]
[351078244,1738326644839,-1084.81,0.00016438,2]
[351078247,1738326644849,-1010.59,0.00016438,2]
[351078249,1738326644859,-2002.74,0.00016438,2]
[351078251,1738326644868,-500.0,0.00016438,2]
[351078253,1738326644878,-500.0,0.00016438,2]
[351078255,1738326644887,-500.0,0.00016438,2]
[351078257,1738326644896,-500.0,0.00016438,2]
[351078259,1738326644906,-2663.05,0.00016438,2]
[351078261,1738326644915,-500.0,0.00016438,2]
[351078263,1738326644925,-5797.26,0.00016438,2]
[351078265,1738326644934,-594.92,0.00016438,2]
[351078267,1738326644944,-526.98,0.00016438,2]
[351078269,1738326644953,-892.3,0.00016438,2]
[351078271,1738326644963,-500.0,0.00016438,2]
[351078273,1738326644973,-1125.38,0.00016438,2]
[351078275,1738326644982,-1337.93,0.00016438,2]
[351078277,1738326644991,-500.0,0.00016438,2]
[351078279,1738326645000,-510.39903692,0.00016438,2]
[351078281,1738326645010,-2132.23,0.00016438,2]
[351078283,1738326645019,-1191.17,0.00016438,2]
[351078285,1738326645028,-500.0,0.00016438,2]
[351078287,1738326645038,-184.97701498,0.00016438,2]
[351078289,1738326645047,-1970.85,0.00016438,2]
[351078291,1738326645056,-500.0,0.00016438,2]
[351078293,1738326645066,-1053.46,0.00016438,2]
[351078295,1738326645076,-500.0,0.00016438,2]
[351078297,1738326645086,-823.99,0.00016438,2]
[351078299,1738326645095,-500.0,0.00016438,2]
[351078301,1738326645105,-500.0,0.00016438,2]
[351078303,1738326645114,-154.135675,0.00016438,2]
[351078305,1738326645125,-2411.93,0.00016438,2]
[351078307,1738326645135,-2217.35,0.00016438,2]
[351078309,1738326645145,-605.23,0.00016438,2]
[351078311,1738326645155,-500.0,0.00016438,2]
[351078313,1738326645164,-500.0,0.00016438,2]
[351078315,1738326645174,-500.0,0.00016438,2]
[351078317,1738326645184,-460.21654168,0.00016438,2]
[351078319,1738326645193,-1042.88,0.00016438,2]
[351078321,1738326645203,-500.0,0.00016438,2]
[351078323,1738326645212,-511.98682788,0.00016438,2]
[351078324,1738326645221,-500.0,0.00016438,2]
[351078325,1738326645231,-1176.72,0.00016438,2]
[351078326,1738326645240,-500.0,0.00016438,2]
[351078327,1738326645250,-500.0,0.00016438,2]
[351078328,1738326645259,-500.0,0.00016438,2]
[351078329,1738326645268,-1715.86,0.00016438,2]
[351078330,1738326645278,-2038.46,0.00016438,2]
[351078331,1738326645287,-827.6,0.00016438,2]
[351078332,1738326645296,-1855.9,0.00016438,2]
[351078333,1738326645306,-783.11,0.00016438,2]
[351078335,1738326645315,-500.0,0.00016438,2]
[351078336,1738326645325,-500.0,0.00016438,2]
[351078337,1738326645334,-969.33,0.00016438,2]
[351078338,1738326645343,-4237.1,0.00016438,2]
[351078339,1738326645352,-1584.44,0.00016438,2]
[351078340,1738326645365,-2016.11,0.00016438,2]
[351078341,1738326645375,-500.0,0.00016438,2]
[351078342,1738326645384,-500.0,0.00016438,2]
[351078343,1738326645393,-2479.22,0.00016438,2]
[351078344,1738326645403,-969.44,0.00016438,2]
[351078345,1738326645412,-500.0,0.00016438,2]
[351078346,1738326645421,-1149.85,0.00016438,2]
[351078347,1738326645431,-696.96,0.00016438,2]
[351078348,1738326645440,-500.0,0.00016438,2]
[351078349,1738326645450,-886.2,0.00016438,2]
[351078351,1738326645459,-500.0,0.00016438,2]
[351078353,1738326645469,-500.0,0.00016438,2]
[351078355,1738326645478,-661.24,0.00016438,2]
[351078357,1738326645488,-1009.11,0.00016438,2]
[351078359,1738326645498,-1340.07,0.00016438,2]
[351078361,1738326645508,-1009.11,0.00016438,2]
[351078363,1738326645517,-2614.22,0.00016438,2]
[351078365,1738326645527,-1592.05,0.00016438,2]
[351078367,1738326645537,-784.0,0.00016438,2]
[351078369,1738326645546,-511.42045189,0.00016438,2]
[351078371,1738326645555,-3893.5,0.00016438,2]
[351078373,1738326645565,-861.37,0.00016438,2]
[351078375,1738326645574,-1234.21,0.00016438,2]
[351078377,1738326645584,-2093.55,0.00016438,2]
[351078379,1738326645593,-545.78,0.00016438,2]
[351078381,1738326645602,-1871.92,0.00016438,2]
[351078383,1738326645612,-1079.17,0.00016438,2]
[351078385,1738326645621,-500.0,0.00016438,2]
[351078387,1738326645631,-500.0,0.00016438,2]
[351078389,1738326645640,-1844.16,0.00016438,2]
[351078391,1738326645650,-3833.57,0.00016438,2]
[351078393,1738326645659,-500.0,0.00016438,2]
[351078395,1738326645668,-500.0,0.00016438,2]
[351078397,1738326645677,-2514.61,0.00016438,2]
[351078399,1738326645686,-1436.42,0.00016438,2]
[351078401,1738326645695,-5425.93,0.00016438,2]
[351078403,1738326645704,-2515.19,0.00016438,2]
[351078404,1738326645713,-964.92,0.00016438,2]
[351078405,1738326645722,-575.33,0.00016438,2]
[351078406,1738326645732,-2939.07,0.00016438,2]
[351078407,1738326645741,-500.0,0.00016438,2]
[351078408,1738326645750,-608.6469043,0.00016438,2]
[351078409,1738326645759,-790.69,0.00016438,2]
[351078410,1738326645769,-2587.16,0.00016438,2]
[351078411,1738326645778,-500.0,0.00016438,2]
[351078412,1738326645787,-1685.54,0.00016438,2]
[351078413,1738326645797,-2582.85,0.00016438,2]
[351078414,1738326645806,-778.72,0.00016438,2]
[351078415,1738326645815,-500.0,0.00016438,2]
[351078416,1738326645825,-500.0,0.00016438,2]
[351078417,1738326645834,-514.37324326,0.00016438,2]
[351078418,1738326645843,-500.0,0.00016438,2]
[351078419,1738326645852,-664.29,0.00016438,2]
[351078420,1738326645862,-1001.24,0.00016438,2]
[351078421,1738326645871,-500.0,0.00016438,2]
[351078422,1738326645880,-3094.09,0.00016438,2]
[351078423,1738326645890,-5595.54,0.00016438,2]
[351078424,1738326645900,-1093.82,0.00016438,2]
[351078425,1738326645909,-2985.13,0.00016438,2]
[351078426,1738326645918,-6586.61,0.00016438,2]
[351078428,1738326645928,-1377.98,0.00016438,2]
[351078430,1738326645937,-1362.9,0.00016438,2]
[351078432,1738326645946,-2029.22,0.00016438,2]
[351078434,1738326645955,-1074.97,0.00016438,2]
[351078436,1738326645965,-500.0,0.00016438,2]
[351078438,1738326645974,-512.01,0.00016438,2]
[351078440,1738326645983,-505.62233868,0.00016438,2]
[351078442,1738326645993,-2260.49,0.00016438,2]
[351078444,1738326646002,-1351.8,0.00016438,2]
[351078445,1738326646011,-2165.14,0.00016438,2]
[351078447,1738326646021,-2553.37,0.00016438,2]
[351078449,1738326646030,-1353.16,0.00016438,2]
[351078452,1738326646039,-500.0,0.00016438,2]
[351078453,1738326646048,-6719.37,0.00016438,2]
[351078454,1738326646057,-500.0,0.00016438,2]
[351078455,1738326646066,-747.91,0.00016438,2]
[351078456,1738326646076,-500.0,0.00016438,2]
[351078457,1738326646085,-513.37,0.00016438,2]
[351078458,1738326646095,-500.0,0.00016438,2]
[351078459,1738326646105,-500.0,0.00016438,2]